[Event "Almaty Open 2019"]
[Site "Almaty"]
[Date "2019.10.09"]
[Round "4.4"]
[White "Isanzhulov, Arystan"]
[Black "Hamitevici, Vladimir"]
[Result "0-1"]
[ECO "B12"]
[WhiteElo "2305"]
[BlackElo "2472"]
[Annotator "ChessBase"]
[PlyCount "189"]
[EventDate "2019.10.07"]
[EventType "swiss"]
[EventCountry "KAZ"]
[SourceTitle "playchess.com"]
[Source "ChessBase"]
[SourceQuality "1"]
[TimeControl "5400+30"]

1. e4 {[%emt 0:00:00]} c6 {[%emt 0:05:25]} 2. d4 {[%emt 0:00:00]} g6 {[%emt 0:00:34]} 3. Nf3 {[%emt 0:14:22]} Bg7 {[%emt 0:01:27]} 4. Nbd2 {[%emt 0:08:06]} d6 {[%emt 0:00:21]} 5. g3 {[%emt 0:06:35]} Nf6 {[%emt 0:02:50]} 6. Bg2 {[%emt 0:02:34]} O-O {[%emt 0:00:22]} 7. O-O {[%emt 0:00:28]} Na6 {[%emt 0:03:46]} 8. Re1 {[%emt 0:04:25]} Nd7 {[%emt 0:03:11]} 9. e5 {[%emt 0:04:14]} dxe5 {[%emt 0:00:40]} 10. dxe5 {[%emt 0:00:22]} Nac5 {[%emt 0:00:14]} 11. b3 {[%emt 0:08:18]} Qc7 {[%emt 0:04:20]} 12. Qe2 {[%emt 0:02:40]} b6 {[%emt 0:00:37]} 13. a4 {[%emt 0:02:31]} Ba6 {[%emt 0:01:08]} 14. Qe3 {[%emt 0:00:30]} Ne6 {[%emt 0:01:17]} 15. Bb2 {[%emt 0:04:14]} Rad8 {[%emt 0:01:32]} 16. h4 {[%emt 0:03:43]} h6 {[%emt 0:05:02]} 17. Nf1 {[%emt 0:04:21]} c5 {[%emt 0:00:44]} 18. h5 {[%emt 0:08:39]} gxh5 {[%emt 0:02:14]} 19. Qe4 {[%emt 0:09:58]} Bb7 {[%emt 0:01:25]} 20. Qf5 {[%emt 0:00:35]} Bxf3 {[%emt 0:01:08]} 21. Bxf3 {[%emt 0:00:23]} Nd4 {[%emt 0:00:20]} 22. Bxd4 {[%emt 0:00:52]} e6 {[%emt 0:00:01]} 23. Qxh5 {[%emt 0:01:55]} cxd4 {[%emt 0:00:12]} 24. Be4 {[%emt 0:02:27]} Nxe5 {[%emt 0:00:33]} 25. Rac1 {[%emt 0:02:00]} Nd7 {[%emt 0:01:15]} 26. Bd3 {[%emt 0:01:54]} Qc5 {[%emt 0:02:05]} 27. Qe2 {[%emt 0:01:08]} Qe5 {[%emt 0:01:40]} 28. Qd1 {[%emt 0:00:30]} Qf6 {[%emt 0:00:54]} 29. Nh2 {[%emt 0:00:57]} Ne5 {[%emt 0:00:22]} 30. Ng4 {[%emt 0:00:42]} Nxg4 {[%emt 0:00:40]} 31. Qxg4 {[%emt 0:00:01]} Rd5 {[%emt 0:00:17]} 32. Qe4 {[%emt 0:02:44]} Rfd8 {[%emt 0:00:16]} 33. Kg2 {[%emt 0:00:39]} Rf5 {[%emt 0:01:05]} 34. Re2 {[%emt 0:00:37]} Rdd5 {[%emt 0:05:23]} 35. Rce1 {[%emt 0:00:51]} Bf8 {[%emt 0:02:44]} 36. Qg4+ {[%emt 0:00:29]} Rg5 {[%emt 0:00:08]} 37. Qe4 {[%emt 0:01:01]} Qg7 {[%emt 0:00:28]} 38. Rh1 {[%emt 0:00:54]} Rg4 {[%emt 0:01:47]} 39. Qf3 {[%emt 0:00:17]} Rgg5 {[%emt 0:04:29]} 40. Be4 {[%emt 0:01:27]} Rd8 {[%emt 0:02:25]} 41. Bd3 {[%emt 0:00:15]} Rdd5 {[%emt 0:01:43]} 42. Be4 {[%emt 0:00:05]} Rde5 {[%emt 0:03:05]} 43. Bd3 {[%emt 0:00:23]} Rxe2 {[%emt 0:00:41]} 44. Qxe2 {[%emt 0:00:18]} Qe5 {[%emt 0:03:01]} 45. Qxe5 {[%emt 0:01:23]} Rxe5 {[%emt 0:00:02]} 46. Rh4 {[%emt 0:00:37]} Rd5 {[%emt 0:00:06]} 47. f4 {[%emt 0:00:38]} Bg7 {[%emt 0:00:25]} 48. Rh1 {[%emt 0:00:27]} Kf8 {[%emt 0:00:21]} 49. f5 {[%emt 0:01:10]} Ke7 {[%emt 0:03:20]} 50. fxe6 {[%emt 0:00:19]} fxe6 {[%emt 0:00:08]} 51. Kf3 {[%emt 0:00:27]} Re5 {[%emt 0:00:43]} 52. Kf2 {[%emt 0:00:55]} Rg5 {[%emt 0:00:47]} 53. Kf3 {[%emt 0:00:09]} h5 {[%emt 0:00:43]} 54. Rh4 {[%emt 0:00:28]} Be5 {[%emt 0:01:10]} 55. g4 {[%emt 0:00:44]} hxg4+ {[%emt 0:00:06]} 56. Rxg4 {[%emt 0:00:02]} Rh5 {[%emt 0:00:05]} 57. Kf2 {[%emt 0:00:39]} Rh2+ {[%emt 0:02:07]} 58. Rg2 {[%emt 0:00:06]} Rh3 {[%emt 0:00:06]} 59. Rg4 {[%emt 0:01:08]} a5 {[%emt 0:00:43]} 60. Ke2 {[%emt 0:00:44]} Kd6 {[%emt 0:01:37]} 61. Kf2 {[%emt 0:00:19]} Bf6 {[%emt 0:00:35]} 62. Kg2 {[%emt 0:00:31]} Rh8 {[%emt 0:00:17]} 63. Rf4 {[%emt 0:00:32]} Rh6 {[%emt 0:00:48]} 64. Rg4 {[%emt 0:00:12]} Be5 {[%emt 0:00:41]} 65. Kf2 {[%emt 0:00:27]} Rh5 {[%emt 0:01:45]} 66. Kf3 {[%emt 0:00:34]} Rh2 {[%emt 0:00:50]} 67. Rg2 {[%emt 0:00:34]} Rh3+ {[%emt 0:00:07]} 68. Kf2 {[%emt 0:00:49]} Bf4 {[%emt 0:00:08]} 69. Rg6 {[%emt 0:00:25]} Bd2 {[%emt 0:01:55]} 70. Rg4 {[%emt 0:00:32]} Be3+ {[%emt 0:02:20]} 71. Kg2 {[%emt 0:00:17]} Rh5 {[%emt 0:00:37]} 72. Rg6 {[%emt 0:00:23]} Re5 {[%emt 0:00:59]} 73. Rg4 {[%emt 0:00:11]} Kc5 {[%emt 0:00:56]} 74. Kf3 {[%emt 0:01:14]} Kb4 {[%emt 0:01:04]} 75. Rg7 {[%emt 0:00:23]} Bd2 {[%emt 0:03:20]} 76. Kf2 {[%emt 0:00:38]} Be1+ {[%emt 0:01:13]} 77. Kf1 {[%emt 0:00:21]} Bc3 {[%emt 0:00:08]} 78. Rb7 {[%emt 0:00:34]} Kc5 {[%emt 0:00:10]} 79. Bb5 {[%emt 0:00:31]} Re3 {[%emt 0:02:03]} 80. Re7 {[%emt 0:00:34]} Kb4 {[%emt 0:00:23]} 81. Bd3 {[%emt 0:00:34]} Ka3 {[%emt 0:01:07]} 82. Rb7 {[%emt 0:00:33]} e5 {[%emt 0:00:07]} 83. Bg6 {[%emt 0:00:25]} e4 {[%emt 0:00:43]} 84. Re7 {[%emt 0:00:17]} Re1+ {[%emt 0:00:14]} 85. Kf2 {[%emt 0:00:04]} e3+ {[%emt 0:00:05]} 86. Kf3 {[%emt 0:00:20]} Kb2 {[%emt 0:00:28]} 87. Bd3 {[%emt 0:01:15]} Rd1 {[%emt 0:00:55]} 88. Bh7 {[%emt 0:00:32]} Rf1+ {[%emt 0:00:26]} 89. Kg3 {[%emt 0:00:32]} Rf2 {[%emt 0:00:15]} 90. Rd7 {[%emt 0:00:34]} Rxc2 {[%emt 0:01:28]} 91. Bxc2 {[%emt 0:00:03]} Kxc2 {[%emt 0:00:06]} 92. Kf3 {[%emt 0:00:12]} Kd1 {[%emt 0:00:26]} 93. Re7 {[%emt 0:00:21]} Bd2 {[%emt 0:00:05]} 94. Ke4 {[%emt 0:00:39]} e2 {[%emt 0:00:07]} 95. Kxd4 0-1

[Event "Almaty Open 2019"]
[Site "Almaty"]
[Date "2019.10.09"]
[Round "4.17"]
[White "Bizhigitov, Zhangir"]
[Black "Zhakshylykov, Erzhan"]
[Result "1-0"]
[ECO "B53"]
[WhiteElo "2018"]
[BlackElo "1999"]
[Annotator "NA RC"]
[PlyCount "58"]
[EventDate "2019.10.07"]
[EventType "swiss"]
[EventCountry "KAZ"]
[SourceTitle "playchess.com"]
[Source "ChessBase"]
[SourceQuality "1"]
[TimeControl "5400+30"]

{[%evp 8,40,27,4,16,-6,7,8,-4,32767,12,32767,48,32767,32767,-16,3,-35,-38,-57,32767,32767,44,44,21,45,59,32767,32767,32767,104,110,32767,32767,283]} 1. e4 {[%emt 0:00:00]} c5 {[%emt 0:00:00]} 2. Nf3 {[%emt 0:00:00]} d6 {[%emt 0:00:03]} 3. d4 {[%emt 0:00:19]} cxd4 {[%emt 0:00:17]} 4. Qxd4 {[%emt 0:00:39]} a6 {[%emt 0:01:22]} 5. Bg5 {[%emt 0:01:54]} Nc6 {[%emt 0:04:05]} 6. Qd2 {[%emt 0:00:23]} h6 {[%emt 0:02:03]} 7. Be3 {[%emt 0:06:12] B53: Sicilian: 2...d6: Lines with Qxd4} Nf6 {[%emt 0:02:22]} 8. Nc3 {[%emt 0:01:35]} Ng4 {[%emt 0:04:14]} 9. Bf4 {[%emt 0:00:24]} g5 {[%emt 0:00:24]} (9... e5 $5 {[%cal Re5f4]} 10. Bg3 Be7 $11) 10. Bg3 {[%emt 0:00:09]} Bg7 {[%emt 0:00:16]} 11. h3 {[%emt 0:09:37]} (11. h4 gxh4 12. Rxh4 Be6 13. Nd5 Rc8 14. O-O-O Nge5 {1-0 (41) Tsydypov,Z (2551)-Kevlishvili,R (2461) Skopje 2019}) 11... Nf6 $1 {[%emt 0:05:22]} 12. O-O-O $146 {[%emt 0:13:35]} ({Predecessor:} 12. Be2 Qa5 13. O-O Be6 14. a3 O-O {0-1 (22) Dostan,J (2188)-Vucinic,G (2252) Novi Sad 2013}) 12... Be6 {[%emt 0:06:36]} 13. Kb1 {[%emt 0:21:04]} Qa5 14. Nd5 {[%emt 0:07:29]} Qa4 {[%emt 0:16:50]} ({Better is} 14... Qxd2 $11 15. Nxf6+ Bxf6 16. Nxd2 b5) 15. Nc7+ {[%emt 0:07:24] [#]} Kd7 $1 {[%emt 0:00:47]} 16. Nxe6 {[%emt 0:00:57]} Nxe4 {[%emt 0:00:23]} (16... fxe6 $11 17. Bd3 Nxe4 18. Bxe4 Qxe4) 17. Nxg7 {[%emt 0:01:38]} Nxd2+ {[%emt 0:01:36]} 18. Rxd2 {[%emt 0:00:08]} Rac8 $16 {[%emt 0:07:44]} ({Better is} 18... Qa5 $14) 19. c3 {[%emt 0:05:50]} b5 {[%emt 0:08:18]} 20. Bd3 {[%emt 0:06:29]} Kc7 {[%emt 0:06:19]} 21. Nf5 {[%emt 0:01:52]} Rcd8 {[%emt 0:02:30]} 22. Re1 {[%emt 0:00:52]} Rd7 {[%emt 0:03:49]} 23. Bc2 {[%emt 0:01:04]} Qa5 {[%emt 0:01:24]} 24. Nxe7 {[%emt 0:02:29]} Nxe7 {[%emt 0:07:54]} 25. Rxe7 {[%emt 0:00:25]} Rxe7 {[%emt 0:04:11]} 26. Bxd6+ {[%emt 0:00:04]} Kb7 {[%emt 0:02:25]} 27. Bxe7 {[%emt 0:00:09]} Re8 {[%emt 0:00:21]} 28. Rd7+ {[%emt 0:00:55]} Kb8 {[%emt 0:01:01]} 29. Ne5 {[%emt 0:02:07]} Rh8 1-0

[Event "Almaty Open 2019"]
[Site "Almaty"]
[Date "2019.10.09"]
[Round "4.18"]
[White "Nurgaliyev, Sauat"]
[Black "Baimurzin, Aitkazy"]
[Result "1/2-1/2"]
[ECO "B28"]
[WhiteElo "1995"]
[BlackElo "2036"]
[Annotator "NA RC"]
[PlyCount "94"]
[EventDate "2019.10.07"]
[EventType "swiss"]
[EventCountry "KAZ"]
[SourceTitle "playchess.com"]
[Source "ChessBase"]
[SourceQuality "1"]
[TimeControl "5400+30"]

1. e4 {[%emt 0:00:00]} c5 {[%emt 0:00:01]} 2. Nf3 {[%emt 0:00:00]} a6 {[%emt 0:00:26]} 3. c4 {[%emt 0:00:30]} e6 {[%emt 0:00:57]} 4. Nc3 {[%emt 0:00:59]} b6 {[%emt 0:01:08]} 5. d4 {[%emt 0:01:07]} cxd4 {[%emt 0:00:40]} 6. Nxd4 {[%emt 0:00:33]} Bb7 {[%emt 0:00:33]} 7. Bd3 {[%emt 0:02:03]} Qc7 {[%emt 0:03:08] A34: Symmetrical English: 2 Nc3, lines with ...d5} (7... d6 8. f4 Nf6 9. O-O Be7 10. Be3 Nbd7 11. b4 O-O 12. a3 Rc8 13. Rc1 Re8 14. g4 e5 15. Nf5 exf4 16. Bxf4 Bf8 17. Bxd6 Ne5 18. Bxf8 Rxf8 {½-½ (37) Kryvoruchko,Y (2697)-Romanov,E (2614) Porto Carras 2018}) 8. O-O {[%emt 0:02:27]} Nf6 {[%emt 0:03:37]} 9. Bg5 {[%emt 0:02:38]} Bd6 $146 {[%emt 0:04:59]} ({Predecessor:} 9... Be7 10. Qe2 d6 11. Kh1 Nbd7 12. f4 h6 13. Bh4 Nc5 14. e5 Ng8 15. Bxe7 Nxe7 16. Ncb5 axb5 17. Nxb5 Qc6 18. Nxd6+ Kf8 {1-0 (28) Velasquez,A (1880)-Rengifo,C (1561) Dosquebradas 2018}) 10. h3 {[%emt 0:02:18]} Bf4 {[%emt 0:04:53]} 11. Bxf4 {[%emt 0:03:16]} Qxf4 {[%emt 0:00:29]} 12. Qf3 {[%emt 0:02:35]} ({White should play} 12. Re1 $14) 12... Qxf3 {[%emt 0:03:03]} 13. gxf3 {[%emt 0:00:39]} d6 {[%emt 0:01:39]} 14. b4 {[%emt 0:01:43]} g5 {[%emt 0:02:11]} 15. a4 {[%emt 0:01:56]} Nbd7 {[%emt 0:02:47]} 16. Rfc1 {[%emt 0:03:47]} Ke7 {[%emt 0:02:31]} 17. a5 {[%emt 0:00:45]} Ne5 {[%emt 0:03:20]} 18. Bf1 {[%emt 0:01:17]} bxa5 {[%emt 0:14:38]} 19. Rxa5 {[%emt 0:02:03]} Rhc8 {[%emt 0:05:54]} 20. Na4 {[%emt 0:03:41]} Nfd7 {[%emt 0:08:53]} 21. c5 {[%emt 0:07:48]} dxc5 {[%emt 0:10:10]} 22. Nxc5 {[%emt 0:06:06]} Nxc5 {[%emt 0:01:41]} 23. bxc5 {[%emt 0:04:57]} Nc6 {[%emt 0:05:11]} 24. Nxc6+ {[%emt 0:03:07]} Rxc6 {[%emt 0:00:34]} 25. Rb1 {[%emt 0:01:25]} Ra7 {[%emt 0:03:24]} 26. Bd3 {[%emt 0:06:22]} f6 {[%emt 0:03:07]} 27. Bc2 {[%emt 0:01:02]} Rc7 {[%emt 0:02:38]} 28. Rb6 {[%emt 0:03:24]} Bc6 {[%emt 0:02:04]} 29. Bb3 {[%emt 0:05:32]} Bd7 {[%emt 0:01:35]} 30. Bc4 {[%emt 0:04:50]} Bc8 {[%emt 0:00:32]} 31. Kf1 {[%emt 0:03:58]} h5 {[%emt 0:01:17]} 32. Kg2 {[%emt 0:04:54]} h4 {[%emt 0:00:51]} 33. Kf1 {[%emt 0:03:09]} Bd7 {[%emt 0:03:33]} 34. Ke2 {[%emt 0:01:47]} e5 {[%emt 0:00:53]} 35. Kf1 $1 {[%emt 0:01:07]} Bxh3+ {[%emt 0:00:04]} 36. Kg1 $11 {[%emt 0:00:03]} Bc8 {[%emt 0:00:20]} 37. Bd5 {[%emt 0:00:16]} Bd7 {[%emt 0:00:29]} 38. Kh2 {[%emt 0:00:54]} Bc8 {[%emt 0:01:36]} 39. Kg2 {[%emt 0:00:48]} Bd7 {[%emt 0:00:41]} 40. Kh2 {[%emt 0:00:26]} Rc8 {[%emt 0:00:57]} 41. Bb7 {[%emt 0:03:01]} Rc7 {[%emt 0:00:27]} 42. Bd5 {[%emt 0:01:19]} Bc8 {[%emt 0:01:04]} 43. Kg2 {[%emt 0:00:22]} Bd7 {[%emt 0:00:29]} 44. Kh2 {[%emt 0:00:16]} Rc8 {[%emt 0:00:49]} 45. Bb7 {[%emt 0:00:14]} Rc7 {[%emt 0:00:21]} 46. Bd5 Be8 47. c6 Bd7 1/2-1/2

[Event "Almaty Open 2019"]
[Site "Almaty"]
[Date "2019.10.11"]
[Round "6.1"]
[White "Igambergenov, Alibek"]
[Black "Hamitevici, Vladimir"]
[Result "1/2-1/2"]
[ECO "A06"]
[WhiteElo "2402"]
[BlackElo "2472"]
[Annotator "ChessBase"]
[PlyCount "89"]
[EventDate "2019.10.07"]
[EventType "swiss"]
[EventCountry "KAZ"]
[SourceTitle "playchess.com"]
[Source "ChessBase"]
[SourceQuality "1"]
[TimeControl "5400+30"]

1. Nf3 {[%emt 0:00:55]} d5 {[%emt 0:03:31]} 2. e3 {[%emt 0:01:12]} e6 {[%emt 0:02:10]} 3. c4 {[%emt 0:00:05]} Nf6 {[%emt 0:01:14]} 4. b3 {[%emt 0:00:20]} b6 {[%emt 0:00:48]} 5. Bb2 {[%emt 0:00:40]} Bb7 {[%emt 0:00:37]} 6. g3 {[%emt 0:00:35]} Nbd7 {[%emt 0:03:06]} 7. Bg2 {[%emt 0:01:49]} a5 {[%emt 0:00:39]} 8. Nc3 {[%emt 0:06:40]} Ne4 {[%emt 0:04:34]} 9. O-O {[%emt 0:01:59]} Ndc5 {[%emt 0:06:00]} 10. cxd5 {[%emt 0:06:31]} exd5 {[%emt 0:03:36]} 11. d3 {[%emt 0:00:33]} Nf6 {[%emt 0:04:36]} 12. Qc2 {[%emt 0:08:59]} Be7 {[%emt 0:03:29]} 13. Nd4 {[%emt 0:00:24]} g6 {[%emt 0:01:10]} 14. Nce2 {[%emt 0:05:48]} O-O {[%emt 0:01:43]} 15. Nf4 {[%emt 0:00:05]} Re8 {[%emt 0:03:10]} 16. a3 {[%emt 0:01:18]} Qd7 {[%emt 0:12:42]} 17. b4 {[%emt 0:04:04]} Ne6 {[%emt 0:03:08]} 18. Ndxe6 {[%emt 0:04:11]} fxe6 {[%emt 0:00:13]} 19. Bh3 {[%emt 0:00:03]} Bd8 {[%emt 0:00:29]} 20. Rac1 {[%emt 0:01:52]} Qf7 {[%emt 0:01:13]} 21. Ne2 {[%emt 0:16:39]} e5 {[%emt 0:08:32]} 22. f4 {[%emt 0:00:50]} e4 {[%emt 0:00:43]} 23. Be5 {[%emt 0:03:55]} axb4 {[%emt 0:01:36]} 24. axb4 {[%emt 0:00:03]} c5 {[%emt 0:00:09]} 25. bxc5 {[%emt 0:03:49]} exd3 {[%emt 0:06:16]} 26. Qxd3 {[%emt 0:00:07]} bxc5 {[%emt 0:03:23]} 27. Ra1 {[%emt 0:09:34]} Ba5 {[%emt 0:07:51]} 28. Bg2 {[%emt 0:08:01]} Ne4 {[%emt 0:05:02]} 29. Bxe4 {[%emt 0:05:54]} dxe4 {[%emt 0:00:07]} 30. Qb5 {[%emt 0:00:02]} Bb4 {[%emt 0:01:37]} 31. Rxa8 {[%emt 0:02:25]} Rxa8 {[%emt 0:01:53]} 32. Rd1 {[%emt 0:00:17]} Bd5 {[%emt 0:06:09]} 33. Nc3 {[%emt 0:01:04]} Bxc3 {[%emt 0:01:15]} 34. Bxc3 {[%emt 0:00:03]} Rc8 {[%emt 0:00:24]} 35. Qa6 {[%emt 0:00:33]} Qe6 {[%emt 0:00:17]} 36. Qa7 {[%emt 0:00:44]} Qf7 {[%emt 0:00:05]} 37. Qa5 {[%emt 0:01:37]} h5 {[%emt 0:01:58]} 38. Ba1 {[%emt 0:00:22]} Kh7 {[%emt 0:02:20]} 39. Qc3 {[%emt 0:00:09]} Be6 {[%emt 0:00:48]} 40. Rd6 {[%emt 0:00:53]} Bh3 {[%emt 0:00:16]} 41. Qe5 {[%emt 0:03:04]} Qb7 {[%emt 0:00:51]} 42. Rb6 {[%emt 0:01:14]} Qd7 {[%emt 0:00:30]} 43. Rd6 {[%emt 0:00:04]} Qb7 {[%emt 0:00:03]} 44. Rb6 {[%emt 0:00:35]} Qd7 {[%emt 0:00:09]} 45. Rd6 {[%emt 0:00:22]} 1/2-1/2

[Event "Almaty Open 2019"]
[Site "Almaty"]
[Date "2019.10.11"]
[Round "6.2"]
[White "Barsov, Alexei"]
[Black "Fier, Alexandr"]
[Result "0-1"]
[ECO "E69"]
[WhiteElo "2365"]
[BlackElo "2541"]
[Annotator "ChessBase"]
[PlyCount "80"]
[EventDate "2019.10.07"]
[EventType "swiss"]
[EventCountry "KAZ"]
[SourceTitle "playchess.com"]
[Source "ChessBase"]
[SourceQuality "1"]
[TimeControl "5400+30"]

1. d4 {[%emt 0:00:00]} Nf6 {[%emt 0:00:00]} 2. Nf3 {[%emt 0:00:00]} g6 {[%emt 0:00:00]} 3. c4 {[%emt 0:00:00]} Bg7 {[%emt 0:00:00]} 4. g3 {[%emt 0:00:00]} O-O {[%emt 0:00:00]} 5. Bg2 {[%emt 0:00:00]} d6 {[%emt 0:00:00]} 6. O-O {[%emt 0:00:00]} Nbd7 {[%emt 0:00:00]} 7. Nc3 {[%emt 0:00:34]} e5 {[%emt 0:00:00]} 8. e4 {[%emt 0:00:18]} c6 {[%emt 0:00:02]} 9. h3 {[%emt 0:00:49]} Qb6 {[%emt 0:00:05]} 10. dxe5 {[%emt 0:15:34]} Nxe5 {[%emt 0:06:30]} 11. Nxe5 {[%emt 0:25:07]} dxe5 {[%emt 0:00:15]} 12. Na4 {[%emt 0:00:53]} Qc7 {[%emt 0:01:54]} 13. Be3 {[%emt 0:00:20]} Be6 {[%emt 0:05:23]} 14. Qe2 {[%emt 0:00:17]} b6 {[%emt 0:03:26]} 15. Rfd1 {[%emt 0:07:57]} Nd7 {[%emt 0:00:23]} 16. Rd2 {[%emt 0:02:12]} f5 {[%emt 0:04:42]} 17. exf5 {[%emt 0:00:39]} gxf5 {[%emt 0:00:05]} 18. Rad1 {[%emt 0:00:36]} Rae8 {[%emt 0:01:35]} 19. Rd6 {[%emt 0:02:26]} e4 {[%emt 0:00:07]} 20. f4 {[%emt 0:10:38]} exf3 {[%emt 0:04:45]} 21. Qxf3 {[%emt 0:02:41]} Ne5 {[%emt 0:00:06]} 22. Qf2 {[%emt 0:00:03]} Bxc4 {[%emt 0:02:32]} 23. Nc3 {[%emt 0:14:26]} Kh8 {[%emt 0:05:40]} 24. Bf4 {[%emt 0:00:07]} c5 {[%emt 0:04:47]} 25. Qc2 {[%emt 0:03:01]} Qf7 {[%emt 0:05:27]} 26. Qa4 {[%emt 0:05:41]} Be6 {[%emt 0:02:08]} 27. Bd5 {[%emt 0:02:04]} Bxd5 {[%emt 0:00:24]} 28. R6xd5 {[%emt 0:03:33]} Nf3+ {[%emt 0:02:29]} 29. Kf2 {[%emt 0:03:22]} Qh5 {[%emt 0:01:14]} 30. R5d3 {[%emt 0:01:07]} Bd4+ {[%emt 0:11:04]} 31. Rxd4 {[%emt 0:00:28]} cxd4 {[%emt 0:00:38]} 32. Rxd4 {[%emt 0:00:36]} Qxh3 {[%emt 0:04:34]} 33. Rd1 {[%emt 0:00:29]} Qh5 {[%emt 0:05:42]} 34. Qxa7 {[%emt 0:00:30]} Nh2 {[%emt 0:03:47]} 35. Kg2 {[%emt 0:00:28]} Re2+ {[%emt 0:01:03]} 36. Nxe2 {[%emt 0:00:02]} Qxe2+ {[%emt 0:00:05]} 37. Kh3 {[%emt 0:00:16]} Ng4 {[%emt 0:00:43]} 38. Rh1 {[%emt 0:00:12]} Nf2+ {[%emt 0:00:16]} 39. Kg2 {[%emt 0:00:06]} Nxh1+ {[%emt 0:00:51]} 40. Kxh1 {[%emt 0:00:01]} Rd8 {[%emt 0:00:17]} 0-1

[Event "Almaty Open 2019"]
[Site "Almaty"]
[Date "2019.10.11"]
[Round "6.3"]
[White "Makhnev, Denis"]
[Black "Utegaliyev, Azamat"]
[Result "1-0"]
[ECO "A58"]
[WhiteElo "2478"]
[BlackElo "2503"]
[Annotator "ChessBase"]
[PlyCount "89"]
[EventDate "2019.10.07"]
[EventType "swiss"]
[EventCountry "KAZ"]
[SourceTitle "playchess.com"]
[Source "ChessBase"]
[SourceQuality "1"]
[TimeControl "5400+30"]

1. d4 {[%emt 0:00:00]} Nf6 {[%emt 0:13:55]} 2. c4 {[%emt 0:00:00]} c5 {[%emt 0:01:55]} 3. d5 {[%emt 0:00:00]} b5 {[%emt 0:01:24]} 4. cxb5 {[%emt 0:00:00]} a6 {[%emt 0:00:03]} 5. bxa6 {[%emt 0:00:10]} g6 {[%emt 0:00:40]} 6. Nc3 {[%emt 0:00:09]} Bxa6 {[%emt 0:00:32]} 7. g3 {[%emt 0:00:05]} d6 {[%emt 0:00:34]} 8. Bg2 {[%emt 0:00:08]} Bg7 {[%emt 0:00:04]} 9. Nf3 {[%emt 0:00:07]} O-O {[%emt 0:00:41]} 10. O-O {[%emt 0:00:55]} Nbd7 {[%emt 0:00:16]} 11. Qc2 {[%emt 0:00:07]} Qa5 {[%emt 0:06:22]} 12. Rd1 {[%emt 0:00:17]} Rfb8 {[%emt 0:00:56]} 13. Rb1 {[%emt 0:39:18]} Ng4 {[%emt 0:05:54]} 14. Bd2 {[%emt 0:00:10]} Nge5 {[%emt 0:04:22]} 15. Nxe5 {[%emt 0:00:52]} Nxe5 {[%emt 0:00:18]} 16. b3 {[%emt 0:00:17]} Qa3 {[%emt 0:14:11]} 17. Bh3 {[%emt 0:19:23]} Rb7 {[%emt 0:05:33]} 18. Be1 {[%emt 0:12:33]} Rab8 {[%emt 0:02:26]} 19. Qc1 {[%emt 0:00:50]} Qa5 {[%emt 0:02:57]} 20. Na4 {[%emt 0:03:12]} Qb5 {[%emt 0:02:57]} 21. Nc3 {[%emt 0:00:04]} Qa5 {[%emt 0:01:48]} 22. Na4 {[%emt 0:00:30]} Qb5 {[%emt 0:07:57]} 23. Nc3 {[%emt 0:00:06]} Qe8 {[%emt 0:00:30]} 24. Bf1 {[%emt 0:00:55]} h5 {[%emt 0:06:19]} 25. Ne4 {[%emt 0:02:38]} Ra7 {[%emt 0:02:28]} 26. Bc3 {[%emt 0:02:40]} Bc8 {[%emt 0:00:23]} 27. Ra1 {[%emt 0:00:30]} Qd8 {[%emt 0:04:33]} 28. Nd2 {[%emt 0:02:40]} Nd7 {[%emt 0:02:12]} 29. Bxg7 {[%emt 0:00:18]} Kxg7 {[%emt 0:00:01]} 30. e4 {[%emt 0:02:26]} Kg8 {[%emt 0:04:45]} 31. Qc3 {[%emt 0:01:07]} Ba6 {[%emt 0:03:27]} 32. Bh3 {[%emt 0:01:04]} Qb6 {[%emt 0:01:34]} 33. Bxd7 {[%emt 0:03:20]} Rxd7 {[%emt 0:00:01]} 34. Qe3 {[%emt 0:00:12]} Qd8 {[%emt 0:01:31]} 35. Rac1 {[%emt 0:00:20]} Bb7 {[%emt 0:02:03]} 36. Nf3 {[%emt 0:00:21]} Ra8 {[%emt 0:00:26]} 37. a4 {[%emt 0:01:27]} Qf8 {[%emt 0:00:38]} 38. Ng5 {[%emt 0:02:36]} Qg7 {[%emt 0:00:36]} 39. f4 {[%emt 0:00:06]} Qb2 {[%emt 0:00:25]} 40. f5 {[%emt 0:01:36]} gxf5 {[%emt 0:00:56]} 41. exf5 {[%emt 0:00:06]} Qg7 {[%emt 0:00:07]} 42. Ne4 {[%emt 0:03:28]} Kf8 {[%emt 0:00:53]} 43. f6 {[%emt 0:00:28]} Qg6 {[%emt 0:00:47]} 44. Qf4 {[%emt 0:00:26]} Ra6 {[%emt 0:00:12]} 45. Nxc5 {[%emt 0:00:29]} 1-0

[Event "Almaty Open 2019"]
[Site "Almaty"]
[Date "2019.10.11"]
[Round "6.4"]
[White "Khusenkhojaev, Muhammad"]
[Black "Simantsev, Mikhail"]
[Result "1-0"]
[ECO "E32"]
[WhiteElo "2434"]
[BlackElo "2365"]
[Annotator "ChessBase"]
[PlyCount "83"]
[EventDate "2019.10.07"]
[EventType "swiss"]
[EventCountry "KAZ"]
[SourceTitle "playchess.com"]
[Source "ChessBase"]
[SourceQuality "1"]
[TimeControl "5400+30"]

1. d4 {[%emt 0:01:04]} Nf6 {[%emt 0:12:19]} 2. c4 {[%emt 0:00:09]} e6 {[%emt 0:00:02]} 3. Nc3 {[%emt 0:00:10]} Bb4 {[%emt 0:00:20]} 4. Qc2 {[%emt 0:00:08]} O-O {[%emt 0:00:51]} 5. Nf3 {[%emt 0:00:08]} b6 {[%emt 0:05:53]} 6. g3 {[%emt 0:00:10]} Bb7 {[%emt 0:02:50]} 7. Bg2 {[%emt 0:00:07]} d5 {[%emt 0:07:58]} 8. cxd5 {[%emt 0:01:46]} exd5 {[%emt 0:04:56]} 9. O-O {[%emt 0:00:34]} Nbd7 {[%emt 0:02:38]} 10. Bf4 {[%emt 0:02:21]} a6 {[%emt 0:19:06]} 11. a3 {[%emt 0:10:00]} Be7 {[%emt 0:10:48]} 12. Ne5 {[%emt 0:02:13]} Re8 {[%emt 0:04:09]} 13. Rfd1 {[%emt 0:01:10]} Bd6 {[%emt 0:05:51]} 14. Nd3 {[%emt 0:18:49]} Qe7 {[%emt 0:04:34]} 15. Rac1 {[%emt 0:01:47]} Rac8 {[%emt 0:08:53]} 16. e3 {[%emt 0:02:00]} h6 {[%emt 0:00:29]} 17. Qb3 {[%emt 0:07:48]} Qe6 {[%emt 0:00:27]} 18. Bxd6 {[%emt 0:04:51]} Qxd6 {[%emt 0:00:01]} 19. Nf4 {[%emt 0:00:27]} c6 {[%emt 0:00:03]} 20. Na4 {[%emt 0:01:17]} b5 {[%emt 0:02:37]} 21. Nd3 {[%emt 0:01:24]} Rc7 {[%emt 0:00:41]} 22. Nac5 {[%emt 0:01:08]} Nxc5 {[%emt 0:00:04]} 23. Nxc5 {[%emt 0:00:20]} Bc8 {[%emt 0:00:06]} 24. Qb4 {[%emt 0:00:19]} Qe7 {[%emt 0:03:33]} 25. Rd2 {[%emt 0:01:48]} h5 {[%emt 0:00:19]} 26. Rdc2 {[%emt 0:01:04]} h4 {[%emt 0:00:58]} 27. Nd3 {[%emt 0:00:12]} Qe6 {[%emt 0:01:57]} 28. Qa5 {[%emt 0:08:13]} Qd6 {[%emt 0:00:20]} 29. Nb4 {[%emt 0:00:58]} Bb7 {[%emt 0:00:39]} 30. Nxa6 {[%emt 0:01:33]} Rce7 {[%emt 0:00:38]} 31. Qb4 {[%emt 0:00:26]} Qd8 {[%emt 0:00:34]} 32. Nc5 {[%emt 0:00:17]} hxg3 {[%emt 0:00:13]} 33. hxg3 {[%emt 0:00:09]} Bc8 {[%emt 0:00:05]} 34. Nd3 {[%emt 0:02:05]} Bf5 {[%emt 0:00:58]} 35. Ne5 {[%emt 0:00:08]} Bxc2 {[%emt 0:01:09]} 36. Nxc6 {[%emt 0:00:08]} Qd7 37. Nxe7+ {[%emt 0:00:09]} Rxe7 {[%emt 0:00:32]} 38. Rxc2 {[%emt 0:00:07]} Re8 {[%emt 0:00:51]} 39. Rc5 {[%emt 0:02:41]} Qf5 {[%emt 0:00:32]} 40. Qxb5 {[%emt 0:00:17]} Qb1+ {[%emt 0:00:31]} 41. Bf1 {[%emt 0:00:24]} Re6 {[%emt 0:00:28]} 42. Rc8+ {[%emt 0:00:16]} 1-0